{"text_format":"1","workbook":"xlsx","n_sheets":3,"sheets":["請求書（取引先控）","請求書（正）","Sheet1"],"not_rendered":{"charts":0,"images":2,"macros":1,"external_links":0,"defined_names":2,"comments":0,"pivot_tables":0},"unopened":[],"bounds":{"document_bytes":16777216,"sheet_cells":100000,"rows_first":2000,"rows_last":500,"rows_between":2000,"halvings":0,"cell_chars":16384,"cell_head_chars":4096},"cells_cut":0,"cells_raw":0,"read":"whole","date_system":"1900"}

{"sheet":"請求書（取引先控）","index":0,"n_rows":40,"n_cols":38,"rows_kept":40,"cut":false,"hidden":false,"merged":[[33,37,33,46],[33,15,33,16],[33,12,33,14],[34,12,35,14],[33,22,33,28],[34,22,35,28],[35,32,35,36],[33,17,33,21],[34,17,35,21],[33,32,33,36],[34,4,35,11],[36,4,37,11],[34,2,35,3],[34,15,35,16],[34,37,34,46],[35,37,35,46],[12,36,12,45],[19,18,20,28],[21,18,22,28],[29,18,30,28],[25,12,26,14],[25,15,26,17],[25,18,26,28],[29,12,30,17],[27,12,28,14],[19,12,20,14],[19,15,20,17],[27,15,28,17],[27,18,28,28],[23,12,24,14],[23,15,24,17],[23,18,24,28],[38,4,39,11],[36,12,37,14],[38,12,39,14],[38,2,39,3],[36,2,37,3],[38,37,38,46],[39,32,39,36],[39,37,39,46],[38,32,38,36],[38,15,39,16],[38,22,39,28],[38,17,39,21],[1,40,1,45],[8,2,11,7],[7,2,7,7],[2,2,2,8],[6,2,6,7],[6,32,6,35],[7,32,7,35],[8,32,8,35],[9,32,9,35],[6,8,6,28],[3,1,4,12],[6,36,6,45],[7,36,7,45],[8,36,8,45],[9,36,9,45],[3,32,4,35],[12,2,12,7],[13,2,13,7],[14,2,15,7],[16,2,17,7],[33,4,33,11],[13,8,13,28],[33,2,33,3],[3,36,4,45],[36,37,36,46],[37,37,37,46],[34,32,34,36],[2,14,4,30],[7,8,7,28],[8,8,11,28],[12,8,12,28],[21,12,22,14],[21,15,22,17],[36,15,37,16],[37,32,37,36],[36,22,37,28],[36,17,37,21],[36,32,36,36],[12,32,12,35]]}
[]
[]
[null,null,"※(正)は松浦企業へ送付",null,null,null,null,null,null,null,null,null,null,null,"請　求　書（取引先控）"]
[null,"松浦企業株式会社　御中",null,null,null,null,null,null,null,null,null,null,null,null,null,null,null,null,null,null,null,null,null,null,null,null,null,null,null,null,null,null,"請求日"]
[]
[]
[null,null,"取引先コード",null,null,null,null,null,null,null,null,null,null,null,null,null,null,null,null,null,null,null,null,null,null,null,null,null,null,null,null,null,"振込口座"]
[null,null,"住　　　所",null,null,null,null,null,null,null,null,null,null,null,null,null,null,null,null,null,null,null,null,null,null,null,null,null,null,null,null,null,"種　　別"]
[null,null,"取 引 先 名",null,null,null,null,null,null,null,null,null,null,null,null,null,null,null,null,null,null,null,null,null,null,null,null,null,null,null,null,null,"口 座 №"]
[null,null,null,null,null,null,null,null,null,null,null,null,null,null,null,null,null,null,null,null,null,null,null,null,null,null,null,null,null,null,null,null,"口座名義"]
[]
[]
[null,null,"T　E　L",null,null,null,null,null,null,null,null,null,null,null,null,null,null,null,null,null,null,null,null,null,null,null,null,null,null,null,null,null,"登録番号"]
[null,null,"工 事 件 名"]
[null,null,"工 事 番 号\nセンキ番号"]
[]
[]
[]
[]
[null,null,null,null,null,null,null,null,null,null,null,null,"金　額",null,null,"（10%税込）"]
[]
[null,null,null,null,null,null,null,null,null,null,null,null,"消費税",null,null,0.1,null,null,{"$f":"IF(S20=\"\",\"\",S20*0.1/1.1)","v":""}]
[]
[null,null,null,null,null,null,null,null,null,null,null,null,"金　額",null,null,"（8%税込）"]
[]
[null,null,null,null,null,null,null,null,null,null,null,null,"消費税",null,null,0.08,null,null,{"$f":"IF(S24=\"\",\"\",S24*0.08/1.08)","v":""}]
[]
[null,null,null,null,null,null,null,null,null,null,null,null,"金　額",null,null,"（非課税0％）"]
[]
[null,null,null,null,null,null,null,null,null,null,null,null,"請求金額",null,null,null,null,null,{"$f":"IF(SUM(S20,S24,S28)=0,\"\",SUM(S20,S24,S28))","v":""}]
[]
[]
[]
[null,null,"月日",null,"名称・摘要",null,null,null,null,null,null,null,"数量",null,null,"単位",null,"単価",null,null,null,null,"金額（税抜）",null,null,null,null,null,null,null,null,null,null,null,null,null,null,"金額（税込・税抜）"]
[null,null,null,null,null,null,null,null,null,null,null,null,null,null,null,null,null,null,null,null,null,null,null,null,null,null,null,null,null,null,null,null,"契約金額"]
[null,null,null,null,null,null,null,null,null,null,null,null,null,null,null,null,null,null,null,null,null,null,null,null,null,null,null,null,null,null,null,null,"精算増減額"]
[null,null,null,null,null,null,null,null,null,null,null,null,null,null,null,null,null,null,null,null,null,null,null,null,null,null,null,null,null,null,null,null,"総出来高金額"]
[null,null,null,null,null,null,null,null,null,null,null,null,null,null,null,null,null,null,null,null,null,null,null,null,null,null,null,null,null,null,null,null,"前回迄請求額"]
[null,null,null,null,null,null,null,null,null,null,null,null,null,null,null,null,null,null,null,null,null,null,null,null,null,null,null,null,null,null,null,null,"今回請求額"]
[null,null,null,null,null,null,null,null,null,null,null,null,null,null,null,null,null,null,null,null,null,null,null,null,null,null,null,null,null,null,null,null,"差引残高"]

{"sheet":"請求書（正）","index":1,"n_rows":40,"n_cols":45,"rows_kept":40,"cut":false,"hidden":false,"merged":[[34,17,35,21],[34,22,35,28],[36,32,36,36],[36,37,36,46],[38,2,39,3],[38,4,39,11],[38,12,39,14],[38,15,39,16],[38,17,39,21],[36,22,37,28],[38,22,39,28],[37,32,37,36],[37,37,37,46],[38,32,38,36],[38,37,38,46],[39,32,39,36],[39,37,39,46],[36,2,37,3],[36,4,37,11],[36,12,37,14],[36,15,37,16],[36,17,37,21],[33,32,33,36],[33,37,33,46],[34,2,35,3],[34,4,35,11],[33,2,33,3],[33,4,33,11],[34,32,34,36],[34,37,34,46],[35,32,35,36],[35,37,35,46],[33,12,33,14],[33,15,33,16],[33,17,33,21],[33,22,33,28],[34,12,35,14],[34,15,35,16],[27,12,28,14],[27,15,28,17],[27,18,28,28],[29,12,30,17],[29,18,30,28],[23,12,24,14],[23,15,24,17],[23,18,24,28],[25,12,26,14],[25,15,26,17],[25,18,26,28],[21,12,22,14],[21,15,22,17],[21,18,22,28],[12,2,12,7],[12,8,12,28],[14,2,15,7],[16,2,17,7],[19,12,20,14],[19,15,20,17],[19,18,20,28],[12,32,12,35],[12,36,12,45],[13,2,13,7],[13,8,13,28],[8,2,11,7],[8,8,11,28],[8,32,8,35],[8,36,8,45],[9,32,9,35],[9,36,9,45],[6,2,6,7],[6,8,6,28],[6,32,6,35],[6,36,6,45],[7,2,7,7],[7,8,7,28],[7,32,7,35],[7,36,7,45],[2,2,2,8],[2,14,4,30],[3,1,4,12],[3,32,4,35],[3,36,4,45],[27,41,27,43],[27,44,27,46],[28,41,30,43],[28,44,30,46],[1,40,1,45]]}
[]
[]
[null,null,"※(正)は松浦企業へ送付",null,null,null,null,null,null,null,null,null,null,null,"請　求　書（正）"]
[null,"松浦企業株式会社　御中",null,null,null,null,null,null,null,null,null,null,null,null,null,null,null,null,null,null,null,null,null,null,null,null,null,null,null,null,null,null,"請求日",null,null,null,{"$f":"IF('請求書（取引先控）'!AK4=\"\",\"\",'請求書（取引先控）'!AK4)","v":""}]
[]
[]
[null,null,"取引先コード",null,null,null,null,null,{"$f":"IF('請求書（取引先控）'!I7=\"\",\"\",'請求書（取引先控）'!I7)","v":""},null,null,null,null,null,null,null,null,null,null,null,null,null,null,null,null,null,null,null,null,null,null,null,"振込口座",null,null,null,{"$f":"IF('請求書（取引先控）'!AK7=\"\",\"\",'請求書（取引先控）'!AK7)","v":""}]
[null,null,"住　　　所",null,null,null,null,null,{"$f":"IF('請求書（取引先控）'!I8=\"\",\"\",'請求書（取引先控）'!I8)","v":""},null,null,null,null,null,null,null,null,null,null,null,null,null,null,null,null,null,null,null,null,null,null,null,"種　　別",null,null,null,{"$f":"IF('請求書（取引先控）'!AK8=\"\",\"\",'請求書（取引先控）'!AK8)","v":""}]
[null,null,"取 引 先 名",null,null,null,null,null,{"$f":"IF('請求書（取引先控）'!I9=\"\",\"\",'請求書（取引先控）'!I9)","v":""},null,null,null,null,null,null,null,null,null,null,null,null,null,null,null,null,null,null,null,null,null,null,null,"口 座 №",null,null,null,{"$f":"IF('請求書（取引先控）'!AK9=\"\",\"\",'請求書（取引先控）'!AK9)","v":""}]
[null,null,null,null,null,null,null,null,null,null,null,null,null,null,null,null,null,null,null,null,null,null,null,null,null,null,null,null,null,null,null,null,"口座名義",null,null,null,{"$f":"IF('請求書（取引先控）'!AK10=\"\",\"\",'請求書（取引先控）'!AK10)","v":""}]
[]
[]
[null,null,"T　E　L",null,null,null,null,null,{"$f":"IF('請求書（取引先控）'!I13=\"\",\"\",'請求書（取引先控）'!I13)","v":""},null,null,null,null,null,null,null,null,null,null,null,null,null,null,null,null,null,null,null,null,null,null,null,"登録番号",null,null,null,{"$f":"IF('請求書（取引先控）'!AK13=\"\",\"\",'請求書（取引先控）'!AK13)","v":""}]
[null,null,"工 事 件 名",null,null,null,null,null,{"$f":"IF('請求書（取引先控）'!I14=\"\",\"\",'請求書（取引先控）'!I14)","v":""}]
[null,null,"工 事 番 号\nセンキ番号"]
[]
[null,null,{"$f":"IF('請求書（取引先控）'!C17=\"\",\"\",'請求書（取引先控）'!C17)","v":""}]
[]
[]
[null,null,null,null,null,null,null,null,null,null,null,null,"金　額",null,null,"（10%税込）",null,null,{"$f":"IF('請求書（取引先控）'!S20=\"\",\"\",'請求書（取引先控）'!S20)","v":""}]
[]
[null,null,null,null,null,null,null,null,null,null,null,null,"消費税",null,null,0.1,null,null,{"$f":"IF('請求書（取引先控）'!S22=\"\",\"\",'請求書（取引先控）'!S22)","v":""}]
[]
[null,null,null,null,null,null,null,null,null,null,null,null,"金　額",null,null,"（8%税込）",null,null,{"$f":"IF('請求書（取引先控）'!S24=\"\",\"\",'請求書（取引先控）'!S24)","v":""}]
[]
[null,null,null,null,null,null,null,null,null,null,null,null,"消費税",null,null,0.08,null,null,{"$f":"IF('請求書（取引先控）'!S26=\"\",\"\",'請求書（取引先控）'!S26)","v":""}]
[]
[null,null,null,null,null,null,null,null,null,null,null,null,"金　額",null,null,"（非課税0％）",null,null,{"$f":"IF('請求書（取引先控）'!S28=\"\",\"\",'請求書（取引先控）'!S28)","v":""},null,null,null,null,null,null,null,null,null,null,null,null,null,null,null,null,null,null,null,null,null,null,"承認",null,null,"担当"]
[]
[null,null,null,null,null,null,null,null,null,null,null,null,"請求金額",null,null,null,null,null,{"$f":"IF('請求書（取引先控）'!S30=\"\",\"\",'請求書（取引先控）'!S30)","v":""}]
[]
[]
[]
[null,null,"月日",null,"名称・摘要",null,null,null,null,null,null,null,"数量",null,null,"単位",null,"単価",null,null,null,null,"金額（税抜）",null,null,null,null,null,null,null,null,null,null,null,null,null,null,"金額（税込・税抜）"]
[null,null,{"$f":"IF('請求書（取引先控）'!C35=\"\",\"\",'請求書（取引先控）'!C35)","v":""},null,{"$f":"IF('請求書（取引先控）'!E35=\"\",\"\",'請求書（取引先控）'!E35)","v":""},null,null,null,null,null,null,null,{"$f":"IF('請求書（取引先控）'!M35=\"\",\"\",'請求書（取引先控）'!M35)","v":""},null,null,{"$f":"IF('請求書（取引先控）'!P35=\"\",\"\",'請求書（取引先控）'!P35)","v":""},null,{"$f":"IF('請求書（取引先控）'!R35=\"\",\"\",'請求書（取引先控）'!R35)","v":""},null,null,null,null,{"$f":"IF('請求書（取引先控）'!W35=\"\",\"\",'請求書（取引先控）'!W35)","v":""},null,null,null,null,null,null,null,null,null,"契約金額",null,null,null,null,{"$f":"IF('請求書（取引先控）'!AL35=\"\",\"\",'請求書（取引先控）'!AL35)","v":""}]
[null,null,null,null,null,null,null,null,null,null,null,null,null,null,null,null,null,null,null,null,null,null,null,null,null,null,null,null,null,null,null,null,"精算増減額",null,null,null,null,{"$f":"IF('請求書（取引先控）'!AL36=\"\",\"\",'請求書（取引先控）'!AL36)","v":""}]
[null,null,{"$f":"IF('請求書（取引先控）'!C37=\"\",\"\",'請求書（取引先控）'!C37)","v":""},null,{"$f":"IF('請求書（取引先控）'!E37=\"\",\"\",'請求書（取引先控）'!E37)","v":""},null,null,null,null,null,null,null,{"$f":"IF('請求書（取引先控）'!M37=\"\",\"\",'請求書（取引先控）'!M37)","v":""},null,null,{"$f":"IF('請求書（取引先控）'!P37=\"\",\"\",'請求書（取引先控）'!P37)","v":""},null,{"$f":"IF('請求書（取引先控）'!R37=\"\",\"\",'請求書（取引先控）'!R37)","v":""},null,null,null,null,{"$f":"IF('請求書（取引先控）'!W37=\"\",\"\",'請求書（取引先控）'!W37)","v":""},null,null,null,null,null,null,null,null,null,"総出来高金額",null,null,null,null,{"$f":"IF('請求書（取引先控）'!AL37=\"\",\"\",'請求書（取引先控）'!AL37)","v":""}]
[null,null,null,null,null,null,null,null,null,null,null,null,null,null,null,null,null,null,null,null,null,null,null,null,null,null,null,null,null,null,null,null,"前回迄請求額",null,null,null,null,{"$f":"IF('請求書（取引先控）'!AL38=\"\",\"\",'請求書（取引先控）'!AL38)","v":""}]
[null,null,{"$f":"IF('請求書（取引先控）'!C39=\"\",\"\",'請求書（取引先控）'!C39)","v":""},null,{"$f":"IF('請求書（取引先控）'!E39=\"\",\"\",'請求書（取引先控）'!E39)","v":""},null,null,null,null,null,null,null,{"$f":"IF('請求書（取引先控）'!M39=\"\",\"\",'請求書（取引先控）'!M39)","v":""},null,null,{"$f":"IF('請求書（取引先控）'!P39=\"\",\"\",'請求書（取引先控）'!P39)","v":""},null,{"$f":"IF('請求書（取引先控）'!R39=\"\",\"\",'請求書（取引先控）'!R39)","v":""},null,null,null,null,{"$f":"IF('請求書（取引先控）'!W39=\"\",\"\",'請求書（取引先控）'!W39)","v":""},null,null,null,null,null,null,null,null,null,"今回請求額",null,null,null,null,{"$f":"IF('請求書（取引先控）'!AL39=\"\",\"\",'請求書（取引先控）'!AL39)","v":""}]
[null,null,null,null,null,null,null,null,null,null,null,null,null,null,null,null,null,null,null,null,null,null,null,null,null,null,null,null,null,null,null,null,"差引残高",null,null,null,null,{"$f":"IF('請求書（取引先控）'!AL40=\"\",\"\",'請求書（取引先控）'!AL40)","v":""}]

{"sheet":"Sheet1","index":2,"n_rows":0,"n_cols":0,"rows_kept":0,"cut":false,"hidden":true,"merged":[]}